fUSD/lending_fUSD_20240422
["ID","MTS","AMOUNT","RATE_DAILY","PERIOD"]
[323186781,1713795050075,-500.0,0.00013698,2]
[323186782,1713795050085,-500.0,0.00013698,2]
[323186783,1713795050094,-667.58,0.00013698,2]
[323186784,1713795050103,-640.5,0.00013698,2]
[323186785,1713795050112,-1758.2,0.00013698,2]
[323186786,1713795050122,-500.0,0.00013698,2]
[323186787,1713795050131,-775.42,0.00013698,2]
[323186788,1713795050140,-1380.59,0.00013698,2]
[323186789,1713795050150,-500.0,0.00013698,2]
[323186790,1713795050159,-500.0,0.00013698,2]
[323186791,1713795050168,-500.0,0.00013698,2]
[323186792,1713795050177,-1278.17,0.00013698,2]
[323186793,1713795050187,-500.0,0.00013698,2]
[323186794,1713795050196,-500.0,0.00013698,2]
[323186795,1713795050205,-500.0,0.00013698,2]
[323186796,1713795050214,-3673.84,0.00013698,2]
[323186797,1713795050223,-618.79,0.00013698,2]
[323186798,1713795050232,-500.0,0.00013698,2]
[323186799,1713795050242,-1042.85,0.00013698,2]
[323186800,1713795050251,-1263.53,0.00013698,2]
[323186801,1713795050260,-1311.13,0.00013698,2]
[323186802,1713795050269,-500.0,0.00013698,2]
[323186803,1713795050279,-1342.64,0.00013698,2]
[323186804,1713795050288,-809.62,0.00013698,2]
[323186805,1713795050298,-833.49,0.00013698,2]
[323186806,1713795050307,-500.0,0.00013698,2]
[323186807,1713795050316,-1672.84,0.00013698,2]
[323186808,1713795050325,-500.0,0.00013698,2]
[323186809,1713795050334,-500.0,0.00013698,2]
[323186810,1713795050345,-1916.02,0.00013698,2]
[323186811,1713795050354,-500.0,0.00013698,2]
[323186812,1713795050364,-653.87,0.00013698,2]
[323186813,1713795050373,-500.0,0.00013698,2]
[323186814,1713795050382,-182.23099275,0.00013698,2]
[323186815,1713795050391,-500.0,0.00013698,2]
[323186816,1713795050400,-500.0,0.00013698,2]
[323186817,1713795050410,-500.0,0.00013698,2]
[323186818,1713795050419,-3703.1,0.00013698,2]
[323186819,1713795050428,-2003.39,0.00013698,2]
[323186820,1713795050437,-2944.5,0.00013698,2]
[323186821,1713795050446,-609.98,0.00013698,2]
[323186822,1713795050455,-500.0,0.00013698,2]
[323186823,1713795050464,-3651.48,0.00013698,2]
[323186824,1713795050473,-1025.66,0.00013698,2]
[323186825,1713795050482,-8998.66,0.00013698,2]
[323186826,1713795050492,-1764.57,0.00013698,2]
[323186827,1713795050501,-500.0,0.00013698,2]
[323186828,1713795050511,-1308.64,0.00013698,2]
[323186829,1713795050521,-500.0,0.00013698,2]
[323186830,1713795050530,-893.94,0.00013698,2]
[323186831,1713795050540,-500.0,0.00013698,2]
[323186832,1713795050549,-500.0,0.00013698,2]
[323186833,1713795050559,-1630.54,0.00013698,2]
[323186834,1713795050568,-500.0,0.00013698,2]
[323186835,1713795050578,-1502.19,0.00013698,2]
[323186836,1713795050589,-500.0,0.00013698,2]
[323186837,1713795050599,-12004.1,0.00013698,2]
[323186838,1713795050608,-519.25,0.00013698,2]
[323186839,1713795050618,-5261.26,0.00013698,2]
[323186840,1713795050627,-500.0,0.00013698,2]
[323186841,1713795050637,-493.91607855,0.00013698,2]
[323186842,1713795050646,-500.0,0.00013698,2]
[323186843,1713795050656,-622.15,0.00013698,2]
[323186844,1713795050665,-2455.66,0.00013698,2]
[323186845,1713795050675,-4535.38,0.00013698,2]
[323186846,1713795050685,-389.27079838,0.00013698,2]
[323186847,1713795050694,-500.0,0.00013698,2]
[323186848,1713795050703,-529.34,0.00013698,2]
[323186849,1713795050713,-500.0,0.00013698,2]
[323186850,1713795050723,-1095.58,0.00013698,2]
[323186851,1713795050732,-500.0,0.00013698,2]
[323186852,1713795050742,-500.0,0.00013698,2]
[323186853,1713795050752,-2551.48,0.00013698,2]
[323186854,1713795050766,-500.0,0.00013698,2]
[323186855,1713795050776,-17102.25,0.00013698,2]
[323186856,1713795050787,-500.0,0.00013698,2]
[323186857,1713795050800,-935.3,0.00013698,2]
[323186858,1713795050810,-866.95,0.00013698,2]
[323186859,1713795050820,-500.0,0.00013698,2]
[323186860,1713795050830,-906.19,0.00013698,2]
[323186861,1713795050842,-1063.07,0.00013698,2]
[323186862,1713795050852,-1409.68,0.00013698,2]
[323186863,1713795050862,-500.0,0.00013698,2]
[323186864,1713795050871,-4527.42,0.00013698,2]
[323186865,1713795050882,-2459.76,0.00013698,2]
[323186866,1713795050892,-10025.05,0.00013698,2]
[323186867,1713795050902,-500.0,0.00013698,2]
[323186868,1713795050912,-4266.24,0.00013698,2]
[323186869,1713795050922,-566.63,0.00013698,2]
[323186870,1713795050931,-3951.47,0.00013698,2]
[323186871,1713795050941,-500.0,0.00013698,2]
[323186872,1713795050951,-500.0,0.00013698,2]
[323186873,1713795050961,-58150.4,0.00013698,2]
[323186874,1713795050971,-600.41,0.00013698,2]
[323186875,1713795050981,-16111.43,0.00013698,2]
[323186876,1713795050991,-630.25,0.00013698,2]
[323186877,1713795051001,-500.0,0.00013698,2]
[323186878,1713795051011,-615.65,0.00013698,2]
[323186879,1713795051021,-500.0,0.00013698,2]
[323186880,1713795051031,-4365.28,0.00013698,2]
[323186881,1713795051041,-1482.7,0.00013698,2]
[323186882,1713795051050,-650.25,0.00013698,2]
[323186883,1713795051060,-5122.57,0.00013698,2]
[323186884,1713795051070,-500.0,0.00013698,2]
[323186885,1713795051079,-1541.66,0.00013698,2]
[323186886,1713795051090,-893.36,0.00013698,2]
[323186887,1713795051100,-898.6,0.00013698,2]
[323186888,1713795051110,-602.39,0.00013698,2]
[323186889,1713795051120,-500.0,0.00013698,2]
[323186890,1713795051129,-2517.95,0.00013698,2]
[323186891,1713795051140,-695.52,0.00013698,2]
[323186892,1713795051149,-750.79,0.00013698,2]
[323186893,1713795051160,-5432.44,0.00013698,2]
[323186894,1713795051170,-6149.18,0.00013698,2]
[323186895,1713795051179,-699.66,0.00013698,2]
[323186896,1713795051189,-396.76727152,0.00013698,2]
[323186897,1713795051199,-500.0,0.00013698,2]
[323186898,1713795051208,-3673.04,0.00013698,2]
[323186899,1713795051218,-2494.65,0.00013698,2]
[323186900,1713795051228,-500.0,0.00013698,2]
[323186901,1713795051237,-503.02194176,0.00013698,2]
[323186902,1713795051247,-500.0,0.00013698,2]
[323186903,1713795051257,-940.33,0.00013698,2]
[323186904,1713795051267,-1326.76,0.00013698,2]
[323186905,1713795051276,-889.46,0.00013698,2]
[323186906,1713795051286,-8404.98,0.00013698,2]
[323186907,1713795051296,-588.3,0.00013698,2]
[323186908,1713795051306,-2395.95,0.00013698,2]
[323186909,1713795051316,-1057.33,0.00013698,2]
[323186910,1713795051325,-500.0,0.00013698,2]
[323186911,1713795051336,-500.0,0.00013698,2]
[323186912,1713795051345,-536.14,0.00013698,2]
[323186913,1713795051355,-500.0,0.00013698,2]
[323186914,1713795051365,-500.0,0.00013698,2]
[323186915,1713795051375,-500.0,0.00013698,2]
[323186916,1713795051385,-500.0,0.00013698,2]
[323186917,1713795051394,-808.39,0.00013698,2]
[323186918,1713795051404,-500.0,0.00013698,2]
[323186919,1713795051414,-3939.28,0.00013698,2]
[323186920,1713795051423,-1243.97,0.00013698,2]
[323186921,1713795051433,-2901.79,0.00013698,2]
[323186922,1713795051443,-15104.4,0.00013698,2]
[323186923,1713795051452,-792.5,0.00013698,2]
[323186924,1713795051463,-5705.74,0.00013698,2]
[323186925,1713795051472,-500.0,0.00013698,2]
[323186926,1713795051482,-500.0,0.00013698,2]
[323186927,1713795051491,-9460.88,0.00013698,2]
[323186928,1713795051501,-1439.81,0.00013698,2]
[323186929,1713795051511,-500.0,0.00013698,2]
[323186930,1713795051520,-701.72,0.00013698,2]
[323186931,1713795051530,-677.62,0.00013698,2]
[323186932,1713795051540,-812.95,0.00013698,2]
[323186933,1713795051550,-2433.97,0.00013698,2]
[323186934,1713795051560,-4040.6,0.00013698,2]
[323186935,1713795051570,-500.0,0.00013698,2]
[323186936,1713795051580,-14335.17,0.00013698,2]
[323186937,1713795051590,-500.0,0.00013698,2]
[323186938,1713795051599,-5809.81,0.00013698,2]
[323186939,1713795051609,-500.0,0.00013698,2]
[323186940,1713795051618,-500.0,0.00013698,2]
[323186941,1713795051628,-500.0,0.00013698,2]
[323186942,1713795051638,-574.77,0.00013698,2]
[323186943,1713795051647,-1995.5,0.00013698,2]
[323186944,1713795051657,-726.16,0.00013698,2]
[323186945,1713795051667,-500.0,0.00013698,2]
[323186946,1713795051677,-30145.59,0.00013698,2]
[323186947,1713795051686,-669.46,0.00013698,2]
[323186948,1713795051696,-500.0,0.00013698,2]
[323186949,1713795051706,-1029.9,0.00013698,2]
[323186950,1713795051716,-5405.09,0.00013698,2]
[323186951,1713795051725,-9505.05,0.00013698,2]
[323186952,1713795051736,-500.0,0.00013698,2]
[323186953,1713795051746,-1228.61,0.00013698,2]
[323186954,1713795051756,-662.63,0.00013698,2]
[323186955,1713795051766,-1319.58,0.00013698,2]
[323186956,1713795051776,-500.0,0.00013698,2]
[323186957,1713795051786,-678.66,0.00013698,2]
[323186958,1713795051800,-56137.79,0.00013698,2]
[323186959,1713795051810,-2228.24,0.00013698,2]
[323186960,1713795051819,-594.32,0.00013698,2]
[323186961,1713795051829,-500.0,0.00013698,2]
[323186962,1713795051839,-668.56,0.00013698,2]
[323186963,1713795051849,-607.41,0.00013698,2]
[323186964,1713795051859,-2494.42,0.00013698,2]
[323186965,1713795051869,-1689.82,0.00013698,2]
[323186966,1713795051879,-74240.77,0.00013698,2]
[323186967,1713795051889,-1882.91,0.00013698,2]
[323186968,1713795051899,-9105.59,0.00013698,2]
[323186969,1713795051909,-500.0,0.00013698,2]
[323186970,1713795051919,-500.0,0.00013698,2]
[323186971,1713795051929,-1619.77,0.00013698,2]
[323186972,1713795051939,-775.83,0.00013698,2]
[323186973,1713795051949,-674.42,0.00013698,2]
[323186974,1713795051960,-500.0,0.00013698,2]
[323186975,1713795051973,-3456.99,0.00013698,2]
[323186976,1713795051984,-2306.53,0.00013698,2]
[323186977,1713795051996,-667.29,0.00013698,2]
[323186978,1713795052007,-500.0,0.00013698,2]
[323186979,1713795052018,-500.0,0.00013698,2]
[323186980,1713795052027,-1182.05,0.00013698,2]
[323186981,1713795052037,-500.0,0.00013698,2]
[323186982,1713795052048,-4369.07,0.00013698,2]
[323186983,1713795052058,-500.0,0.00013698,2]
[323186984,1713795052068,-500.0,0.00013698,2]
[323186985,1713795052079,-706.86,0.00013698,2]
[323186986,1713795052089,-2937.98,0.00013698,2]
[323186987,1713795052099,-2039.25,0.00013698,2]
[323186988,1713795052108,-895.95,0.00013698,2]
[323186989,1713795052118,-1831.86,0.00013698,2]
[323186990,1713795052128,-854.27,0.00013698,2]
[323186991,1713795052138,-500.0,0.00013698,2]
[323186992,1713795052149,-3722.34,0.00013698,2]
[323186993,1713795052159,-569.89,0.00013698,2]
[323186994,1713795052169,-5432.2,0.00013698,2]
[323186995,1713795052179,-693.27,0.00013698,2]
[323186996,1713795052190,-1396.12,0.00013698,2]
[323186997,1713795052200,-500.0,0.00013698,2]
[323186998,1713795052210,-2603.2,0.00013698,2]
[323186999,1713795052220,-500.0,0.00013698,2]
[323187000,1713795052229,-500.0,0.00013698,2]
[323187001,1713795052239,-865.11,0.00013698,2]
[323187002,1713795052250,-500.0,0.00013698,2]
[323187003,1713795052259,-500.0,0.00013698,2]
[323187004,1713795052269,-500.0,0.00013698,2]
[323187005,1713795052279,-1658.09,0.00013698,2]
[323187006,1713795052289,-831.02,0.00013698,2]
[323187007,1713795052298,-2095.61,0.00013698,2]
[323187008,1713795052308,-1977.13,0.00013698,2]
[323187009,1713795052318,-29087.91,0.00013698,2]
[323187010,1713795052327,-994.2,0.00013698,2]
[323187011,1713795052337,-9039.24,0.00013698,2]
[323187012,1713795052347,-808.8,0.00013698,2]
[323187013,1713795052357,-676.32,0.00013698,2]
[323187014,1713795052366,-848.32,0.00013698,2]
[323187015,1713795052375,-500.0,0.00013698,2]
[323187016,1713795052385,-1129.68,0.00013698,2]
[323187017,1713795052395,-12012.62,0.00013698,2]
[323187018,1713795052406,-500.0,0.00013698,2]
[323187019,1713795052415,-500.0,0.00013698,2]
[323187020,1713795052426,-2311.88,0.00013698,2]
[323187021,1713795052436,-500.0,0.00013698,2]
[323187022,1713795052446,-5765.85,0.00013698,2]
[323187023,1713795052455,-6566.76,0.00013698,2]
[323187024,1713795052465,-500.0,0.00013698,2]
[323187025,1713795052475,-500.0,0.00013698,2]
[323187026,1713795052486,-1276.82,0.00013698,2]
[323187027,1713795052496,-3715.97,0.00013698,2]
[323187028,1713795052507,-6993.9,0.00013698,2]
[323187029,1713795052517,-681.86,0.00013698,2]
[323187030,1713795052527,-558.69,0.00013698,2]
[323187031,1713795052536,-592.1,0.00013698,2]
[323187032,1713795052546,-500.0,0.00013698,2]
[323187033,1713795052557,-1080.89,0.00013698,2]
[323187034,1713795052566,-500.0,0.00013698,2]
[323187035,1713795052578,-2511.31,0.00013698,2]
[323187036,1713795052590,-5890.12,0.00013698,2]
[323187037,1713795052600,-591.43,0.00013698,2]
[323187038,1713795052610,-500.0,0.00013698,2]
[323187039,1713795052622,-4360.44,0.00013698,2]
[323187040,1713795052633,-2433.81,0.00013698,2]
[323187041,1713795052644,-6718.15,0.00013698,2]
[323187042,1713795052656,-35958.44,0.00013698,2]
[323187043,1713795052667,-1400.56,0.00013698,2]
[323187044,1713795052677,-12686.33,0.00013698,2]
[323187045,1713795052689,-7927.41,0.00013698,2]
[323187046,1713795052699,-11013.4,0.00013698,2]
[323187047,1713795053003,-9338.26,0.00013698,2]
[323187048,1713795053014,-2302.2,0.00013698,2]
[323187049,1713795053025,-500.0,0.00013698,2]
[323187050,1713795053034,-603.09,0.00013698,2]
[323187051,1713795053045,-633.58,0.00013698,2]
[323187052,1713795053056,-680.05,0.00013698,2]
[323187053,1713795053066,-500.0,0.00013698,2]
[323187054,1713795053075,-500.0,0.00013698,2]
[323187055,1713795053085,-500.0,0.00013698,2]
[323187056,1713795053094,-1648.67,0.00013698,2]
[323187057,1713795053105,-746.32,0.00013698,2]
[323187058,1713795053116,-6870.42,0.00013698,2]
[323187059,1713795053126,-556.49,0.00013698,2]
[323187060,1713795053136,-1989.27,0.00013698,2]
[323187061,1713795053146,-500.0,0.00013698,2]
[323187062,1713795053155,-1109.34,0.00013698,2]
[323187063,1713795053165,-732.11,0.00013698,2]
[323187064,1713795053174,-9322.99,0.00013698,2]
[323187065,1713795053183,-14147.98,0.00013698,2]
[323187066,1713795053193,-500.0,0.00013698,2]
[323187067,1713795053202,-579.21,0.00013698,2]
[323187068,1713795053211,-500.0,0.00013698,2]
[323187069,1713795053221,-500.0,0.00013698,2]
[323187070,1713795053230,-768.21,0.00013698,2]
[323187071,1713795053240,-4445.57,0.00013698,2]
[323187072,1713795053250,-8724.76,0.00013698,2]
[323187073,1713795053260,-500.0,0.00013698,2]
[323187074,1713795053269,-410.80472145,0.00013698,2]
[323187075,1713795053279,-1256.99,0.00013698,2]
[323187076,1713795053288,-599.68,0.00013698,2]
[323187077,1713795053297,-2191.2,0.00013698,2]
[323187078,1713795053306,-1241.14,0.00013698,2]
[323187079,1713795053316,-705.34,0.00013698,2]
[323187080,1713795053325,-500.0,0.00013698,2]
[323187081,1713795053334,-5539.94,0.00013698,2]
[323187082,1713795053346,-2413.19,0.00013698,2]
[323187083,1713795053355,-3266.17,0.00013698,2]
[323187084,1713795053364,-500.0,0.00013698,2]
[323187085,1713795053375,-5114.16,0.00013698,2]
[323187086,1713795053384,-1529.36,0.00013698,2]
[323187087,1713795053393,-625.61,0.00013698,2]
[323187088,1713795053402,-500.0,0.00013698,2]
[323187089,1713795053411,-500.0,0.00013698,2]
[323187090,1713795053421,-4216.46,0.00013698,2]
[323187091,1713795053430,-500.0,0.00013698,2]
[323187092,1713795053439,-500.0,0.00013698,2]
[323187093,1713795053449,-500.0,0.00013698,2]
[323187094,1713795053458,-942.59,0.00013698,2]
[323187095,1713795053467,-500.0,0.00013698,2]
[323187096,1713795053476,-6337.55,0.00013698,2]
[323187097,1713795053486,-500.0,0.00013698,2]
[323187098,1713795053497,-13517.01,0.00013698,2]
[323187099,1713795053507,-594.4,0.00013698,2]
[323187100,1713795053517,-1130.42,0.00013698,2]
[323187101,1713795053526,-1728.74,0.00013698,2]
[323187102,1713795053536,-500.0,0.00013698,2]
[323187103,1713795053546,-594.04,0.00013698,2]
[323187104,1713795053555,-694.43,0.00013698,2]
[323187105,1713795053565,-584.43,0.00013698,2]
[323187106,1713795053575,-2724.12,0.00013698,2]
[323187107,1713795053585,-500.0,0.00013698,2]
[323187108,1713795053597,-797.88,0.00013698,2]
[323187109,1713795053608,-500.0,0.00013698,2]
[323187110,1713795053618,-5902.35,0.00013698,2]
[323187111,1713795053628,-5004.13,0.00013698,2]
[323187112,1713795053638,-736.83,0.00013698,2]
[323187113,1713795053650,-3756.97,0.00013698,2]
[323187114,1713795053661,-597.92,0.00013698,2]
[323187115,1713795053670,-4477.88,0.00013698,2]
[323187116,1713795053680,-1473.33,0.00013698,2]
[323187117,1713795053690,-500.0,0.00013698,2]
[323187118,1713795053699,-500.0,0.00013698,2]
[323187119,1713795053708,-500.0,0.00013698,2]
[323187120,1713795053717,-500.0,0.00013698,2]
[323187121,1713795053726,-566.13041872,0.00013698,2]
[323187122,1713795053736,-1646.33,0.00013698,2]
[323187123,1713795053746,-599.66,0.00013698,2]
[323187124,1713795053755,-515.75,0.00013698,2]
[323187125,1713795053764,-614.64,0.00013698,2]
[323187126,1713795053773,-500.0,0.00013698,2]
[323187127,1713795053783,-500.0,0.00013698,2]
[323187128,1713795053793,-4574.09,0.00013698,2]
[323187129,1713795053806,-500.0,0.00013698,2]
[323187130,1713795053815,-2248.07,0.00013698,2]
[323187131,1713795053824,-500.0,0.00013698,2]
[323187132,1713795053835,-1300.21,0.00013698,2]
[323187133,1713795053845,-1344.36,0.00013698,2]
[323187134,1713795053855,-500.0,0.00013698,2]
[323187135,1713795053866,-1605.5,0.00013698,2]
[323187136,1713795053877,-500.0,0.00013698,2]
[323187137,1713795053887,-8231.36,0.00013698,2]
[323187138,1713795053896,-535.36,0.00013698,2]
[323187139,1713795053905,-567.89,0.00013698,2]
[323187140,1713795053917,-500.0,0.00013698,2]
[323187141,1713795053927,-500.0,0.00013698,2]
[323187142,1713795053936,-4737.28,0.00013698,2]
[323187143,1713795053945,-531.93,0.00013698,2]
[323187144,1713795053955,-6958.14,0.00013698,2]
[323187145,1713795053964,-293.63096916,0.00013698,2]
[323187146,1713795053973,-500.0,0.00013698,2]
[323187147,1713795053982,-500.0,0.00013698,2]
[323187148,1713795053991,-657.44,0.00013698,2]
[323187149,1713795054000,-500.0,0.00013698,2]
[323187150,1713795054010,-500.0,0.00013698,2]
[323187151,1713795054019,-3403.65,0.00013698,2]
[323187152,1713795054028,-1671.14,0.00013698,2]
[323187153,1713795054038,-500.0,0.00013698,2]
[323187154,1713795054047,-1850.09,0.00013698,2]
[323187155,1713795054056,-2708.6,0.00013698,2]
[323187156,1713795054065,-500.0,0.00013698,2]
[323187157,1713795054074,-500.0,0.00013698,2]
[323187158,1713795054083,-732.38,0.00013698,2]
[323187159,1713795054092,-500.0,0.00013698,2]
[323187160,1713795054102,-500.0,0.00013698,2]
[323187161,1713795054112,-500.0,0.00013698,2]
[323187162,1713795054121,-312.85622401,0.00013698,2]
[323187163,1713795054131,-634.34,0.00013698,2]
[323187164,1713795054140,-3169.53,0.00013698,2]
[323187165,1713795054150,-500.0,0.00013698,2]
[323187166,1713795054159,-655.72,0.00013698,2]
[323187167,1713795054168,-500.0,0.00013698,2]
[323187168,1713795054177,-1682.73,0.00013698,2]
[323187169,1713795054187,-7330.92,0.00013698,2]
[323187170,1713795054197,-500.0,0.00013698,2]
[323187171,1713795054208,-500.0,0.00013698,2]
[323187172,1713795054218,-500.0,0.00013698,2]
[323187173,1713795054229,-1328.15,0.00013698,2]
[323187174,1713795054238,-569.06913325,0.00013698,2]
[323187175,1713795054247,-155.0,0.00013698,2]
[323187176,1713795054257,-500.0,0.00013698,2]
[323187177,1713795054266,-500.0,0.00013698,2]
[323187178,1713795054275,-500.0,0.00013698,2]
[323187179,1713795054284,-1759.22,0.00013698,2]
[323187180,1713795054294,-2520.0,0.00013698,2]
[323187181,1713795054303,-2470.85,0.00013698,2]
[323187182,1713795054313,-500.0,0.00013698,2]
[323187183,1713795054322,-15063.51,0.00013698,2]
[323187184,1713795054332,-546.5,0.00013698,2]
[323187185,1713795054342,-500.0,0.00013698,2]
[323187186,1713795054351,-5145.11,0.00013698,2]
[323187187,1713795054360,-598.88,0.00013698,2]
[323187188,1713795054369,-999.74,0.00013698,2]
[323187189,1713795054378,-1607.23,0.00013698,2]
[323187190,1713795054387,-9486.42,0.00013698,2]
[323187191,1713795054396,-500.0,0.00013698,2]
[323187192,1713795054405,-500.0,0.00013698,2]
[323187193,1713795054414,-500.0,0.00013698,2]
[323187194,1713795054423,-500.0,0.00013698,2]
[323187195,1713795054433,-865.92,0.00013698,2]
[323187196,1713795054442,-536.20143265,0.00013698,2]
[323187197,1713795054451,-219.08050101,0.00013698,2]
[323187198,1713795054460,-856.89,0.00013698,2]
[323187199,1713795054470,-588.2,0.00013698,2]
[323187200,1713795054479,-5076.53,0.00013698,2]
[323187201,1713795054488,-500.0,0.00013698,2]
[323187202,1713795054498,-7957.19,0.00013698,2]
[323187203,1713795054507,-858.48,0.00013698,2]
[323187204,1713795054517,-795.77,0.00013698,2]
[323187205,1713795054526,-4146.43,0.00013698,2]
[323187206,1713795054536,-14050.42,0.00013698,2]
[323187207,1713795054545,-532.7,0.00013698,2]
[323187208,1713795054554,-2492.78,0.00013698,2]
[323187209,1713795054563,-500.0,0.00013698,2]
[323187210,1713795054573,-777.69,0.00013698,2]
[323187211,1713795054582,-500.0,0.00013698,2]
[323187212,1713795054592,-745.61,0.00013698,2]
[323187213,1713795054601,-2125.16,0.00013698,2]
[323187214,1713795054612,-500.0,0.00013698,2]
[323187215,1713795054621,-500.0,0.00013698,2]
[323187216,1713795054630,-711.08,0.00013698,2]
[323187217,1713795054639,-1500.17,0.00013698,2]
[323187218,1713795054648,-500.0,0.00013698,2]
[323187219,1713795054657,-676.25,0.00013698,2]
[323187220,1713795054666,-500.0,0.00013698,2]
[323187221,1713795054676,-9571.4,0.00013698,2]
[323187222,1713795054685,-743.71,0.00013698,2]
[323187223,1713795054694,-500.0,0.00013698,2]
[323187224,1713795054703,-13178.74,0.00013698,2]
[323187225,1713795054712,-500.0,0.00013698,2]
[323187226,1713795054722,-956.49,0.00013698,2]
[323187227,1713795054735,-500.0,0.00013698,2]
[323187228,1713795054744,-500.0,0.00013698,2]
[323187229,1713795054753,-200.0,0.00013699,2]
[323187230,1713795054762,-200.0,0.00013699,2]
[323187231,1713795054772,-200.0,0.00013699,2]
[323187232,1713795054781,-200.0,0.00013699,2]
[323187233,1713795054791,-200.0,0.00013699,2]
[323187234,1713795054803,-200.0,0.00013699,2]
[323187235,1713795054812,-200.0,0.00013699,2]
[323187236,1713795054822,-151.0,0.00013699,2]
[323187237,1713795054831,-151.0,0.00013699,2]
[323187238,1713795054841,-152.31172,0.00013699,2]
[323187239,1713795054850,-151.0,0.00013699,2]
[323187240,1713795054859,-151.0,0.00013699,2]
[323187241,1713795054870,-151.0,0.00013699,2]
[323187242,1713795054879,-151.0,0.00013699,2]
[323187243,1713795054888,-151.0,0.00013699,2]
[323187244,1713795054898,-6240.0,0.00013699,2]
[323187245,1713795054907,-151.0,0.00013699,2]
[323187246,1713795054916,-151.0,0.00013699,2]
[323187247,1713795054926,-151.0,0.00013699,2]
[323187248,1713795054935,-283.268119,0.00013699,2]
[323187249,1713795054945,-2890.0,0.00013699,2]
[323187250,1713795054955,-151.0,0.00013699,2]
[323187251,1713795054965,-152.586028,0.00013699,2]
[323187252,1713795054974,-151.0,0.00013699,2]
[323187253,1713795054984,-178.916687,0.00013699,2]
[323187254,1713795054993,-151.0,0.00013699,2]
[323187255,1713795055003,-151.0,0.00013699,2]
[323187256,1713795055012,-151.0,0.00013699,2]
[323187257,1713795055023,-151.0,0.00013699,2]
[323187258,1713795055033,-151.0,0.00013699,2]
[323187259,1713795055043,-151.0,0.00013699,2]
[323187260,1713795055052,-151.0,0.00013699,2]
[323187261,1713795055062,-151.0,0.00013699,2]
[323187262,1713795055072,-155.442691,0.00013699,2]
[323187263,1713795055082,-156.19651,0.00013699,2]
[323187264,1713795055091,-581.0,0.00013699,2]
[323187265,1713795055102,-151.0,0.00013699,2]
[323187266,1713795055113,-151.0,0.00013699,2]
[323187267,1713795055122,-151.0,0.00013699,2]
[323187268,1713795055132,-157.733001,0.00013699,2]
[323187269,1713795055141,-152.95203,0.00013699,2]
[323187270,1713795055150,-151.0,0.00013699,2]
[323187271,1713795055160,-151.0,0.00013699,2]
[323187272,1713795055172,-151.0,0.00013699,2]
[323187273,1713795055182,-151.0,0.00013699,2]
[323187274,1713795055192,-152.584658,0.00013699,2]
[323187275,1713795055203,-151.0,0.00013699,2]
[323187276,1713795055215,-151.0,0.00013699,2]
[323187277,1713795055225,-151.0,0.00013699,2]
[323187278,1713795055234,-151.0,0.00013699,2]
[323187279,1713795055243,-151.0,0.00013699,2]
[323187280,1713795055252,-151.0,0.00013699,2]